[Event "FIDE WY-U16 Olympuad 2022"]
[Site "Nakhchivan"]
[Date "2022.10.03"]
[Round "2.3"]
[White "Francs, Marats"]
[Black "Camlar, Arda"]
[Result "0-1"]
[ECO "A50"]
[WhiteElo "1956"]
[BlackElo "2322"]
[Annotator "TA"]
[PlyCount "88"]
[EventDate "2022.10.02"]
[EventType "team-tourn"]
[EventCountry "AZE"]
[SourceTitle "playchess.com"]
[Source "ChessBase"]
[SourceQuality "1"]
[WhiteTeam "Latvia"]
[BlackTeam "Turkey"]
[WhiteTeamCountry "LAT"]
[BlackTeamCountry "TUR"]
[TimeControl "40/5400+30:1800+30"]

{[%evp 19,88,-13,-10,-19,-7,-12,-8,-23,-13,-22,-23,-49,-43,-48,-48,-44,-39,-51,-40,-77,-45,-49,-18,-20,-20,-37,-28,-35,-34,-58,-60,-64,-100,-131,-121,-122,-115,-176,-124,-117,-106,-104,-97,-158,-133,-146,-132,-154,-147,-180,-160,-282,-282,-282,-282,-282,-282,-524,-526,-516,-468,-490,-479,-835,-831,-1220,-1202,-1202,-1195,-1188,-1137]} 1. d4 {[%emt 0:00:01]} Nf6 {[%emt 0:00:17]} 2. c4 {[%emt 0:00:12]} b6 {[%emt 0:00:23]} 3. Nc3 {[%emt 0:00:20]} Bb7 {[%emt 0:00:29]} 4. Qc2 {[%emt 0:00:36]} e6 {[%emt 0:05:55]} 5. a3 {[%emt 0:01:26]} d5 {[%emt 0:02:49]} 6. cxd5 {[%emt 0:00:07]} Nxd5 {[%emt 0:00:51]} 7. e4 {[%emt 0:01:25]} Nxc3 {[%emt 0:00:08]} 8. bxc3 {[%emt 0:00:08]} Be7 {[%emt 0:00:41]} 9. Nf3 {[%emt 0:00:20]} O-O {[%emt 0:00:57]} 10. Be2 {[%emt 0:03:24]} c5 {[%emt 0:01:41]} 11. O-O {[%emt 0:00:22][%cal Od4d5] E12: Queen's Indian: Unusual White 4th moves, 4 a3, 4 Nc3 Bb7 5 a3 and 4 Nc3 Bb7 .} cxd4 {[%emt 0:00:50]} 12. cxd4 {[%emt 0:00:13]} Nc6 {[%emt 0:00:49]} 13. Be3 {[%emt 0:01:02] The position is equal.} Rc8 {[%emt 0:00:33][%cal Oc6d4] [#] Threatens to win with ...Nxd4!} 14. Qd3 {[%emt 0:05:42]} Na5 {[%emt 0:04:20]} 15. Nd2 {[%emt 0:06:16] [#]} Qc7 $146 {[%emt 0:02:07]} ({Predecessor:} 15... Qd7 16. f4 Qa4 17. Bd1 Qc6 18. Bf3 Qc3 19. Qe2 Ba6 20. Qxa6 Qxe3+ 21. Rf2 Qxd4 22. Raf1 Rc2 {0-1 (22) Alvarez,E (2233)-Xiong,J (2220) ICC INT 2012}) 16. Rfd1 {[%emt 0:29:46]} Rfd8 {[%emt 0:04:15]} 17. Qb5 {[%emt 0:03:55]} Bf6 {[%emt 0:06:29]} 18. e5 {[%emt 0:03:23]} Be7 {[%emt 0:00:45]} 19. Bf3 {[%emt 0:00:38]} Bxf3 {[%emt 0:14:47]} (19... a6 $5 {[%cal Ra6b5]} 20. Qe2 b5 $15) 20. Nxf3 {[%emt 0:02:09]} Qc4 {[%emt 0:00:32]} 21. a4 {[%emt 0:01:15]} h6 {[%emt 0:04:16]} 22. Nd2 {[%emt 0:05:27]} Qc6 {[%emt 0:07:22]} 23. h3 {[%emt 0:02:34]} Qb7 {[%emt 0:05:21]} 24. Rac1 {[%emt 0:01:25]} Nc6 {[%emt 0:02:52][%cal Ba5c6,Bc6b4,Bb4d5][%mdl 32]} 25. Nf3 {[%emt 0:03:49]} Nb4 {[%emt 0:01:47] Against d5} 26. Rxc8 {[%emt 0:03:18]} Rxc8 {[%emt 0:01:19]} 27. Rc1 {[%emt 0:00:30]} Nd5 {[%emt 0:02:10]} 28. Qb3 {[%emt 0:01:37]} (28. Rxc8+ $17 {might work better.} Qxc8 29. Bd2) 28... a6 {[%emt 0:02:46]} ({Black should play} 28... a5 $19 29. Kh2 Bb4) 29. Ne1 $17 {[%emt 0:03:57]} Rxc1 {[%emt 0:02:03]} 30. Bxc1 {[%emt 0:00:11]} Qc6 {[%emt 0:00:40]} 31. Bd2 {[%emt 0:02:43]} ({White should try} 31. Bb2) 31... b5 {[%emt 0:02:21]} 32. axb5 {[%emt 0:00:07]} axb5 {[%emt 0:00:14]} ({Not} 32... Qxb5 33. Qxb5 axb5 34. Kf1 $11) 33. Nd3 {[%emt 0:01:00]} b4 {[%emt 0:02:21]} 34. Kf1 {[%emt 0:03:48]} ({Don't blunder} 34. Nxb4 $2 Nxb4 35. Bxb4 Qb7 $19) ({Don't go for} 34. Bxb4 $2 Qb5 35. Kh2 Nxb4 $19) 34... Qb6 {[%emt 0:04:08]} 35. Qb2 {[%emt 0:00:54]} (35. Qc4 $17 {is a better defense.}) 35... Qb5 $19 {[%emt 0:01:07]} 36. Qb3 {[%emt 0:02:25]} Nc3 {[%emt 0:03:11]} 37. Qc2 {[%emt 0:00:13]} Ne4 {[%emt 0:02:38] [#] White must now prevent ...b3.} 38. Ke1 $2 {[%emt 0:02:07]} (38. Be1 {was the only chance.} b3 39. Qb1) 38... b3 {[%emt 0:01:06] Black is clearly winning.} 39. Qb1 {[%emt 0:00:16]} Qc4 {[%emt 0:01:43]} 40. Ke2 {[%emt 0:02:52]} Qa4 {[%emt 0:03:11] Strongly threatening ...Qa2.} 41. Qb2 {[%emt 0:18:24]} (41. Qe1 $142 Qa2 42. f4) 41... Qa2 {[%emt 0:01:16] And now ...Ba3 would win.} 42. f3 {[%emt 0:04:11]} Ba3 {[%emt 0:01:44]} 43. Qxa2 {[%emt 0:02:01]} bxa2 {[%emt 0:00:02]} 44. fxe4 {[%emt 0:00:08]} a1=Q {[%emt 0:00:10] Weighted Error Value: White=0.51/Black=0.07 (flawless)} 0-1

[Event "FIDE WY-U16 Olympuad 2022"]
[Site "Nakhchivan"]
[Date "2022.10.03"]
[Round "2.5"]
[White "Madaminov, Mukhiddin"]
[Black "Azadaliyev, Jahandar"]
[Result "1-0"]
[ECO "A45"]
[WhiteElo "2425"]
[BlackElo "2304"]
[Annotator "TA"]
[PlyCount "179"]
[EventDate "2022.10.02"]
[EventType "team-tourn"]
[EventCountry "AZE"]
[SourceTitle "playchess.com"]
[Source "ChessBase"]
[SourceQuality "1"]
[WhiteTeam "Uzbekistan"]
[BlackTeam "Azerbaijan"]
[WhiteTeamCountry "UZB"]
[BlackTeamCountry "AZE"]
[TimeControl "40/5400+30:1800+30"]

{[%evp 10,179,12,6,14,9,37,-20,14,0,20,7,4,0,8,1,69,55,62,47,98,66,76,36,44,47,89,87,74,55,116,110,124,89,110,110,139,132,145,140,143,135,139,68,165,72,149,151,129,157,215,184,225,155,159,158,171,164,174,167,154,168,170,164,175,62,160,160,193,156,156,163,163,143,146,131,154,161,170,167,168,161,161,161,161,119,119,0,161,163,163,140,156,175,175,181,177,177,172,157,161,52,134,19,34,12,10,28,10,16,133,8,24,64,240,240,359,349,331,342,346,337,331,336,372,282,354,315,310,309,299,275,492,320,299,254,615,577,478,347,1025,986,830,793,570,0,564,397,375,324,559,566,12823,10158,5297,5302,1958,1649,29982,12845,12845,12837,12829,12829,12838,12838,12838,12829,12839,12830,9202,1018]} 1. d4 {[%emt 0:01:10]} Nf6 {[%emt 0:00:07]} 2. Nc3 {[%emt 0:00:25]} d5 {[%emt 0:00:08]} 3. Bf4 {[%emt 0:00:05]} e6 {[%emt 0:00:51]} 4. Nb5 {[%emt 0:00:05]} Na6 {[%emt 0:01:29]} 5. e3 {[%emt 0:00:15]} c5 {[%emt 0:08:02]} 6. c3 {[%emt 0:01:08]} Be7 {[%emt 0:07:24]} 7. a4 {[%emt 0:01:37]} O-O {[%emt 0:00:54]} 8. Nf3 {[%emt 0:02:10]} (8. b3 $14) 8... Bd7 {[%emt 0:04:42]} 9. Ne5 {[%emt 0:04:35]} c4 {[%emt 0:06:11]} 10. b3 {[%emt 0:06:45]} cxb3 {[%emt 0:03:34]} 11. Qxb3 {[%emt 0:07:25]} Bc6 {[%emt 0:03:27]} 12. Bd3 {[%emt 0:02:00]} Nd7 {[%emt 0:03:55]} (12... Nh5 $11) 13. O-O {[%emt 0:12:20]} Nxe5 {[%emt 0:07:23]} 14. Bxe5 {[%emt 0:00:15]} Qa5 {[%emt 0:03:56]} ({Better is} 14... g6 $14) 15. Rfb1 {[%emt 0:12:25]} Rfc8 {[%emt 0:06:57]} 16. Qd1 {[%emt 0:01:00]} Qd8 {[%emt 0:04:24]} 17. Qh5 {[%emt 0:15:35]} h6 {[%emt 0:00:59]} 18. Qg4 {[%emt 0:02:50]} Bf6 {[%emt 0:01:06]} 19. Bg3 {[%emt 0:02:06]} Qd7 {[%emt 0:01:50]} (19... Bxb5 $14 20. axb5 Nc7) 20. h4 $16 {[%emt 0:02:04]} Qe7 {[%emt 0:04:49]} 21. h5 {[%emt 0:00:40]} Rd8 {[%emt 0:02:05]} 22. Bc2 {[%emt 0:04:10]} Bg5 {[%emt 0:05:34]} 23. Qe2 {[%emt 0:01:10]} f5 {[%emt 0:00:34]} 24. Bd3 {[%emt 0:01:25]} Bh4 {[%emt 0:01:36]} 25. Bf4 {[%emt 0:00:55]} Bg5 {[%emt 0:01:00]} 26. Rb3 {[%emt 0:00:07]} (26. Be5 $16) 26... Rd7 {[%emt 0:01:26]} (26... Nb8 $1 $14) 27. a5 {[%emt 0:02:01]} (27. Bh2 $18 {is more deadly.}) 27... Qd8 {[%emt 0:01:15]} (27... Bxf4 $142 28. exf4 Nc7) 28. Be5 $16 {[%emt 0:02:26]} Bf6 {[%emt 0:00:24]} 29. Bh2 {[%emt 0:01:52]} Qe7 {[%emt 0:02:04]} (29... Nb8 $16 30. c4 Na6) 30. Rab1 {[%emt 0:00:19]} Qd8 {[%emt 0:02:13]} 31. Qa2 {[%emt 0:00:34]} Be7 {[%emt 0:00:22]} 32. c4 {[%emt 0:01:16]} dxc4 {[%emt 0:01:00]} 33. Bxc4 {[%emt 0:00:06]} Bd5 {[%emt 0:00:10]} 34. R3b2 {[%emt 0:02:35]} Rc8 {[%emt 0:08:49]} 35. Bxd5 {[%emt 0:00:25]} exd5 {[%emt 0:00:27]} 36. Nxa7 {[%emt 0:02:57]} Rc4 {[%emt 0:00:19]} 37. Ra1 {[%emt 0:00:12]} (37. Rc2 $18 Nb4 38. Rxc4 Nxa2 39. Rc8) 37... Bb4 {[%emt 0:01:06]} (37... Nb4 $14 38. Qb1 Qf8) 38. Nb5 $16 {[%emt 0:03:26]} Bxa5 {[%emt 0:00:45]} 39. Nd6 {[%emt 0:03:15]} Rxd6 {[%emt 0:00:39]} 40. Bxd6 {[%emt 0:00:05]} (40. Rxb7 $2 Rdc6 41. Rd1 Bc7 $19) 40... Bc3 {[%emt 0:00:12]} 41. Bg3 {[%emt 0:31:30]} (41. Rxb7 Bxa1 42. Bg3 (42. Qxa6 $2 Rc1+ 43. Qf1 Rxf1+ $19) 42... f4 43. exf4 Rc1+ 44. Kh2 Qe8 45. Qxd5+ Kh8 $11) 41... Bxb2 {[%emt 0:30:16]} 42. Qxb2 {[%emt 0:00:02]} Qd7 {[%emt 0:01:13]} 43. Be5 {[%emt 0:00:14]} Ra4 {[%emt 0:03:35]} 44. Rxa4 {[%emt 0:02:09]} Qxa4 {[%emt 0:00:02]} 45. Qb1 {[%emt 0:00:08]} (45. Qxb7 Qd1+ 46. Kh2 Qxh5+ 47. Kg3 (47. Kg1 Qd1+ 48. Kh2 Qh5+ 49. Kg3 Qg6+ 50. Kh2 Qh5+ $11) 47... Qg6+ 48. Kh2 Qh5+ 49. Kg3 (49. Kg1 Qd1+ 50. Kh2 Qh5+ $11) 49... Qg4+ 50. Kh2 Qh5+ $11) 45... Qd7 {[%emt 0:00:26]} 46. Qb6 {[%emt 0:00:27]} Kf7 {[%emt 0:00:59]} 47. Qg6+ {[%emt 0:01:28]} Kg8 {[%emt 0:00:07]} 48. Qb6 {[%emt 0:00:21]} Kf7 $1 {[%emt 0:00:13]} 49. f3 {[%emt 0:00:39]} Kg8 {[%emt 0:00:47]} 50. Kf2 {[%emt 0:00:15]} Qe7 {[%emt 0:01:54]} 51. Qb5 {[%emt 0:00:24]} Nb4 {[%emt 0:00:32]} 52. Ke2 {[%emt 0:01:41]} Kh7 {[%emt 0:00:00]} 53. Bg3 {[%emt 0:00:00]} Kh8 {[%emt 0:00:00]} 54. Bf4 {[%emt 0:00:00]} Kh7 {[%emt 0:00:00]} 55. Kd2 {[%emt 0:00:00]} (55. g4 $18) 55... Kh8 {[%emt 0:00:00]} (55... Nc6 $1 $14) 56. Kc3 {[%emt 0:00:00]} ({White should try} 56. Be5 $16) 56... Nc6 $11 {[%emt 0:00:00]} 57. Qxd5 {[%emt 0:00:00]} Qa3+ {[%emt 0:00:00]} 58. Qb3 {[%emt 0:00:00]} Qc1+ {[%emt 0:00:00]} 59. Qc2 {[%emt 0:00:00]} Qe1+ {[%emt 0:00:00]} (59... Qa1+ $1 $11 60. Qb2 Qd1) 60. Qd2 {[%emt 0:00:00]} ({Only move:} 60. Kc4 $1 $16) 60... Qa1+ $1 $11 {[%emt 0:00:00]} 61. Qb2 {[%emt 0:00:00]} Qe1+ $2 {[%emt 0:00:00]} (61... Qa5+ $14 62. Kc2 Qa6) 62. Kc4 $18 {[%emt 0:00:00]} Qf1+ {[%emt 0:00:00]} (62... Ne7 {was worth a try.} 63. Kc5 (63. Qxb7 Qc1+ 64. Kb5 Qb2+ 65. Ka6 Qa3+ 66. Kb6 Qb3+ 67. Kc7 Qe6 $18) 63... Qa5+ 64. Kd6 (64. Qb5 b6+ 65. Kc4 Qa2+ 66. Kd3 Qxg2 $14) 64... Qd8+ 65. Ke6 Nd5 66. Qxb7 Nxf4+ 67. exf4 Qxd4 68. Qb8+ Kh7) 63. Kc5 $18 {[%emt 0:00:00]} Qa6 {[%emt 0:00:00]} 64. Qb6 $1 {[%emt 0:00:41]} Qa3+ {[%emt 0:00:00]} 65. Kd5 {[%emt 0:00:08]} Qa2+ {[%emt 0:00:12] [#]} 66. Kd6 $1 {[%emt 0:03:00]} (66. Kc5 $6 Qa8 67. Qc7 Kg8 $18) 66... Qa3+ {[%emt 0:01:19]} 67. Kc7 {[%emt 0:01:25]} Qe7+ {[%emt 0:00:38]} 68. Kc8 {[%emt 0:00:06]} Kh7 {[%emt 0:00:48]} 69. Qc7 {[%emt 0:02:15]} Qe8+ {[%emt 0:03:53]} 70. Kxb7 {[%emt 0:00:06]} Nb4 $2 {[%emt 0:00:13]} (70... Ne7 {was necessary.} 71. Qc4 Qd7+ 72. Kb6 Nd5+ 73. Kc5 Nxf4) 71. Qd6 {[%emt 0:02:11]} Qb5+ {[%emt 0:01:16]} 72. Kc8 {[%emt 0:00:06]} ({Much less strong is} 72. Qb6 $6 Qd7+ 73. Bc7 Qd5+ 74. Kc8 Qg8+ 75. Bd8 (75. Kb7 Qd5+ 76. Kc8 Nc6 $18) 75... Nc2 76. Qg6+ Kh8 $18) 72... Qe8+ $2 {[%emt 0:00:37]} (72... Qc4+ 73. Qc7 Qg8+ 74. Kb7 Qd5+ 75. Kb6 Qe6+ 76. Kb5 Nd3) 73. Kc7 $18 {[%emt 0:00:12]} Qf7+ {[%emt 0:00:20]} 74. Kb6 {[%emt 0:01:11]} Qb3 $2 {[%emt 0:01:34]} (74... Qc4 75. Qd7 Qa6+ 76. Kc7 Qa5+ 77. Kb8 Qb6+ 78. Kc8 Qa6+ 79. Kc7 Qa5+ 80. Kb7 Qa6+ 81. Kb8 Qb6+ 82. Kc8 Qa6+ 83. Kd8 Qa5+ 84. Ke7 Nd5+ 85. Ke6 Nf6) 75. Qg6+ $18 {[%emt 0:00:05]} Kh8 {[%emt 0:00:32]} 76. Qe8+ {[%emt 0:00:25]} Kh7 {[%emt 0:00:06]} 77. Qg6+ {[%emt 0:00:07]} Kh8 {[%emt 0:00:04]} 78. Qxf5 {[%emt 0:00:29]} Nd5+ {[%emt 0:00:32]} 79. Kc5 {[%emt 0:00:11]} Ne7 $2 {[%emt 0:00:05]} (79... Nf6 80. g4 Qc3+ 81. Kb6 Qb4+ 82. Qb5 Nd5+ 83. Ka6 Qa3+ 84. Kb7 Qe7+ 85. Ka8 Qa3+ 86. Kb8 Qf8+ 87. Ka7 Qa3+ 88. Kb7 Qe7+ 89. Ka8 Qa3+ 90. Kb8 Qf8+ 91. Ka7 Qa3+ 92. Qa6 Qe7+ 93. Qb7 Qa3+ 94. Kb8 Nxf4 95. Qc8+ Kh7 96. Qf5+ (96. exf4 Qb3+ 97. Qb7 Qg8+ 98. Kc7 Qf7+ 99. Kc6 Qc4+ 100. Kb6 Qxd4+ 101. Kb5 Qb2+ 102. Kc6 Qf6+ 103. Kc5 Qc3+ 104. Kd6 Qf6+ 105. Kd5 Qxf4 $16) 96... Kg8 97. Qc8+ Kh7 98. Qf5+ (98. exf4 Qb4+ 99. Qb7 Qf8+ 100. Ka7 Qa3+ 101. Kb8 Qf8+ 102. Ka7 Qa3+ 103. Kb6 Qb3+ 104. Ka7 Qa4+ 105. Kb8 Qe8+ 106. Kc7 Qf7+ 107. Kc8 Qe8+ 108. Kc7 Qf7+ 109. Kc8 Qe8+ 110. Kc7 $16) 98... Kh8 99. Qc8+ Kh7) 80. Qd7 $18 {[%emt 0:01:45]} Qc3+ {[%emt 0:00:35]} 81. Kd6 {[%emt 0:00:20]} Qb4+ {[%emt 0:01:37]} 82. Ke6 {[%emt 0:00:09]} Ng8 {[%emt 0:00:31]} 83. Be5 Qb6+ {[%emt 0:01:27]} 84. Kf5 {[%emt 0:00:31]} (84. Kf7 $142 Nf6 85. Qc8+ Kh7 86. Qf5+ Kh8 87. Bxf6 Qc7+ 88. Be7 Qb8 {[#]} 89. Bd6 $1 {[%mdl 512]}) 84... Nf6 $18 {[%emt 0:00:07]} 85. Bxf6 {[%emt 0:00:14]} Qxf6+ {[%emt 0:00:02]} 86. Ke4 {[%emt 0:00:08]} Qh4+ {[%emt 0:00:10]} 87. g4 {[%emt 0:00:07]} Qe1 {[%emt 0:00:13]} 88. Qe8+ {[%emt 0:00:26]} Kh7 {[%emt 0:00:04]} 89. Kf5 {[%emt 0:00:11]} Qa5+ {[%emt 0:00:10]} 90. Qe5 {[%emt 0:00:06]} 1-0

[Event "FIDE WY-U16 Olympuad 2022"]
[Site "Nakhchivan"]
[Date "2022.10.03"]
[Round "2.6"]
[White "Aslanov, Umid"]
[Black "Begmuratov, Khumoyun"]
[Result "1/2-1/2"]
[ECO "C55"]
[WhiteElo "2273"]
[BlackElo "2353"]
[Annotator "TA"]
[PlyCount "91"]
[EventDate "2022.10.02"]
[EventType "team-tourn"]
[EventCountry "AZE"]
[SourceTitle "playchess.com"]
[Source "ChessBase"]
[SourceQuality "1"]
[WhiteTeam "Azerbaijan"]
[BlackTeam "Uzbekistan"]
[WhiteTeamCountry "AZE"]
[BlackTeamCountry "UZB"]
[TimeControl "40/5400+30:1800+30"]

{[%evp 12,91,37,37,35,21,25,31,23,29,39,30,31,19,54,19,76,49,37,36,58,45,50,15,4,0,14,13,23,0,16,0,0,0,0,-15,0,-10,8,-10,12,-10,0,0,0,-6,-11,-14,40,50,58,10,89,0,0,0,0,0,0,0,0,0,0,0,0,0,0,0,0,0,0,0,0,0,0,0,0,0,0,0,0,0]} 1. e4 {[%emt 0:00:01]} e5 {[%emt 0:00:29]} 2. Nf3 {[%emt 0:00:26]} Nc6 {[%emt 0:00:23]} 3. Bc4 {[%emt 0:00:34]} Nf6 {[%emt 0:00:29]} 4. d3 {[%emt 0:00:18]} Be7 {[%emt 0:00:30]} 5. O-O {[%emt 0:01:47]} O-O {[%emt 0:00:21]} 6. Re1 {[%emt 0:00:54]} d6 {[%emt 0:02:57]} 7. a4 {[%emt 0:01:03]} a6 {[%emt 0:02:26] C55: Two Knights: 4 d3, 4 d4 exd4 5 e5 and Max Lange Attack.} 8. c3 {[%emt 0:07:32]} Na5 {[%emt 0:07:44]} 9. Ba2 {[%emt 0:01:37]} c5 {[%emt 0:00:13] White is slightly better.} 10. Na3 {[%emt 0:08:38][%cal Bb1a3,Ba3c2,Bc2e3][%mdl 32]} Nc6 {[%emt 0:06:34]} 11. Bd2 {[%emt 0:08:24]} Rb8 {[%emt 0:05:32]} 12. Nc2 {[%emt 0:19:47]} h6 {[%emt 0:17:31]} 13. Ne3 {[%emt 0:10:07] [#]} b5 $146 {[%emt 0:01:21]} (13... Be6 $11) ({Predecessor:} 13... Re8 14. g3 Bf8 15. Nh4 Be6 16. Nd5 g6 17. Qf3 Nh7 18. Ng2 Bg7 19. h4 h5 {0-1 (44) Paramzina,A (2271)-Borosova,Z (2327) Stary Smokovec 2018}) 14. axb5 $16 {[%emt 0:07:16]} axb5 {[%emt 0:00:41]} 15. h3 {[%emt 0:07:01]} Nh7 {[%emt 0:12:48]} 16. Bd5 {[%emt 0:04:08]} Bd7 {[%emt 0:00:57]} 17. Bxc6 {[%emt 0:05:07]} Bxc6 {[%emt 0:00:08]} 18. Nf5 {[%emt 0:00:27]} Bd7 {[%emt 0:06:28]} 19. Nxe7+ {[%emt 0:05:26]} Qxe7 {[%emt 0:00:06]} 20. d4 {[%emt 0:00:45]} Nf6 {[%emt 0:03:04]} 21. Qe2 {[%emt 0:03:48]} Ra8 {[%emt 0:00:33]} 22. dxe5 {[%emt 0:01:16]} dxe5 {[%emt 0:00:14]} 23. Nh4 {[%emt 0:01:16]} Rfd8 {[%emt 0:03:31]} 24. Rad1 {[%emt 0:01:58]} Ra4 {[%emt 0:04:55]} 25. Qf3 {[%emt 0:01:29]} Bc8 {[%emt 0:10:19]} 26. b4 {[%emt 0:00:47]} cxb4 {[%emt 0:00:28]} 27. cxb4 {[%emt 0:00:03]} Rd4 {[%emt 0:03:32]} 28. Nf5 {[%emt 0:01:43]} Bxf5 {[%emt 0:00:02]} 29. exf5 {[%emt 0:00:05]} Ra7 {[%emt 0:06:09]} (29... Qd6 $11 30. Bc3 Ra3 31. Bxd4 (31. Ra1 e4 $15) 31... Rxf3 32. Bxe5 Qxb4 33. gxf3 Nh5) 30. Bc3 $14 {[%emt 0:00:21]} Rxd1 {[%emt 0:00:49]} 31. Qxd1 {[%emt 0:00:11]} (31. Rxd1 $14 Qc7 32. Qe3) 31... e4 {[%emt 0:02:48] [#]} (31... Rd7 $11 {keeps the balance.} 32. Qa1 Kh7) 32. Bxf6 {[%emt 0:00:33]} (32. Qe2 $1 $16) 32... Qxf6 $16 {[%emt 0:00:05][%mdl 4096] Endgame KQR-KQR. The position is equal.} 33. Qd5 {[%emt 0:00:17]} ({Don't blunder} 33. Rxe4 $2 Ra1 34. Qxa1 (34. Re8+ $2 Kh7 $19) 34... Qxa1+ $19) 33... Ra1 {[%emt 0:01:53]} 34. Rxa1 {[%emt 0:00:46]} Qxa1+ $11 {[%emt 0:00:01] KQ-KQ} 35. Kh2 {[%emt 0:00:04]} Qf1 {[%emt 0:00:46]} 36. Qxe4 {[%emt 0:02:01]} Qxf2 {[%emt 0:00:21]} 37. Qe8+ {[%emt 0:00:31]} Kh7 {[%emt 0:00:01]} 38. Qxb5 {[%emt 0:00:20] Black must now prevent Qb8.} Qf4+ {[%emt 0:00:00]} 39. Kg1 {[%emt 0:00:05]} Qe3+ {[%emt 0:00:44]} 40. Kh2 {[%emt 0:00:06] aiming for Qb8.} Qf4+ {[%emt 0:00:03]} 41. Kg1 {[%emt 0:30:01]} Qe3+ {[%emt 0:30:06]} 42. Kf1 {[%emt 0:00:00]} Qf4+ {[%emt 0:00:00]} 43. Ke2 {[%emt 0:00:00]} Qe4+ {[%emt 0:00:00]} 44. Kf2 {[%emt 0:00:00]} Qf4+ {[%emt 0:00:00]} 45. Ke2 {[%emt 0:00:00]} Qe4+ {[%emt 0:00:00]} 46. Kf2 {[%emt 0:00:00] Weighted Error Value: White=0.11 (very precise) /Black=0.14 (very precise)} 1/2-1/2